bitfinex/quotes_BTCUSD_20251117
["timestamp","ask_amount","ask_price","bid_price","bid_amount"]
[1763361377786,0.5401396,95112.0,95111.0,0.20204431]
[1763361378554,0.5401396,95112.0,95111.0,0.20104431]
[1763361378935,0.5401396,95112.0,95111.0,0.20204431]
[1763361379140,0.47087988,95112.0,95111.0,0.20104431]
[1763361379846,0.45539988,95112.0,95111.0,0.20204431]
[1763361380485,0.47087988,95112.0,95111.0,0.20204431]
[1763361380690,0.49459988,95112.0,95111.0,0.20204431]
[1763361382892,0.47087988,95112.0,95111.0,0.20204431]
[1763361383255,0.49459988,95112.0,95111.0,0.20204431]
[1763361384498,0.41031988,95112.0,95111.0,0.20204431]
[1763361385464,0.49459988,95112.0,95111.0,0.20204431]
[1763361386488,0.55360465,95112.0,95111.0,0.20204431]
[1763361387303,0.59702339,95112.0,95111.0,0.20204431]
[1763361387726,0.59702339,95112.0,95111.0,0.10204431]
[1763361388546,0.59702339,95112.0,95111.0,0.10104431]
[1763361388967,0.53801862,95112.0,95111.0,0.10157551]
[1763361389176,0.53801862,95112.0,95111.0,0.10204431]
[1763361389377,0.53801862,95112.0,95111.0,0.10004431]
[1763361389535,0.53801862,95112.0,95111.0,0.10104431]
[1763361389740,0.53801862,95112.0,95111.0,0.10204431]
[1763361390286,0.37111988,95112.0,95111.0,0.10204431]
[1763361390498,0.37111988,95112.0,95111.0,0.14335431]
[1763361390715,0.33950488,95112.0,95111.0,0.14335431]
[1763361391167,0.34820321,95120.0,95111.0,0.24335431]
[1763361391375,0.323,95120.0,95119.0,0.13045881]
[1763361391812,0.323,95120.0,95119.0,0.15514881]
[1763361392468,0.03161077,95123.0,95119.0,0.15514881]
[1763361392668,0.03161077,95123.0,95122.0,0.01662]
[1763361392899,0.323,95129.0,95122.0,0.04131]
[1763361393102,0.03160947,95128.0,95122.0,0.04131]
[1763361394049,0.03160947,95128.0,95123.0,0.1]
[1763361394254,0.03160947,95128.0,95123.0,0.10873]
[1763361394988,0.41747841,95127.0,95123.0,0.1]
[1763361395322,0.02372,95126.0,95123.0,0.1]
[1763361395538,0.40728,95125.0,95123.0,0.1]
[1763361395732,0.01548,95124.0,95123.0,0.1]
[1763361395978,0.3622,95124.0,95123.0,0.1]
[1763361396182,0.42114311,95124.0,95123.0,0.1]
[1763361397171,0.09814311,95124.0,95123.0,0.1]
[1763361398299,0.09814311,95124.0,95123.0,0.101]
[1763361398504,0.09814311,95124.0,95123.0,0.102]
[1763361400688,0.12975468,95124.0,95123.0,0.102]
[1763361404422,0.14625905,95124.0,95123.0,0.102]
[1763361404877,0.12975468,95124.0,95123.0,0.102]
[1763361405451,0.49783468,95124.0,95123.0,0.102]
[1763361408010,0.51433905,95124.0,95123.0,0.102]
[1763361409167,0.43005905,95124.0,95123.0,0.102]
[1763361409818,0.47045905,95124.0,95123.0,0.102]
[1763361415547,0.55473905,95124.0,95123.0,0.102]
[1763361415761,0.53071905,95124.0,95123.0,0.102]
[1763361417101,0.44643905,95124.0,95123.0,0.102]
[1763361418622,0.45776905,95124.0,95123.0,0.102]
[1763361418825,0.48178905,95124.0,95123.0,0.102]
[1763361419237,0.45776905,95124.0,95123.0,0.102]
[1763361420562,0.48178905,95124.0,95123.0,0.102]
[1763361420911,0.39882594,95124.0,95123.0,0.102]
[1763361421519,0.38244594,95124.0,95123.0,0.102]
[1763361421978,0.37111594,95124.0,95123.0,0.102]
[1763361425458,0.45539594,95124.0,95123.0,0.102]
[1763361425663,0.37111594,95124.0,95123.0,0.11703]
[1763361426011,0.45539594,95124.0,95123.0,0.14176]
[1763361426881,0.45539594,95124.0,95123.0,0.11703]
[1763361427919,0.45539594,95124.0,95123.0,0.102]
[1763361428805,0.55631886,95124.0,95123.0,0.102]
[1763361429715,0.47203886,95124.0,95123.0,0.102]
[1763361430132,0.44801886,95124.0,95123.0,0.102]
[1763361430398,0.39882594,95124.0,95123.0,0.102]
[1763361430606,0.38244594,95124.0,95123.0,0.102]
[1763361431677,0.37111594,95124.0,95123.0,0.102]
[1763361433651,0.42284594,95124.0,95123.0,0.102]
[1763361433859,0.39882594,95124.0,95123.0,0.102]
[1763361434866,0.38244594,95124.0,95123.0,0.102]
[1763361435071,0.42674585,95124.0,95123.0,0.102]
[1763361435509,0.51102585,95124.0,95123.0,0.102]
[1763361439164,0.46672594,95124.0,95123.0,0.102]
[1763361440244,0.38244594,95124.0,95123.0,0.102]
[1763361440452,0.37111594,95124.0,95123.0,0.102]
[1763361444399,0.38332594,95124.0,95123.0,0.102]
[1763361445589,0.50656594,95124.0,95123.0,0.102]
[1763361446436,0.51963722,95124.0,95123.0,0.102]
[1763361446845,0.51963722,95124.0,95123.0,0.002]
[1763361447574,0.51963722,95124.0,95123.0,0.001]
[1763361447793,0.323,95123.0,95119.0,0.20510881]
[1763361451251,0.03161134,95122.0,95119.0,0.20510881]
[1763361452960,0.05518134,95122.0,95119.0,0.20510881]
[1763361453486,0.323,95123.0,95119.0,0.20510881]
[1763361453686,0.03161134,95121.0,95119.0,0.20510881]
[1763361455088,0.01539,95120.0,95119.0,0.20510881]
[1763361455270,0.03896,95120.0,95119.0,0.20510881]
[1763361455480,0.12324,95120.0,95119.0,0.20510881]
[1763361455685,0.09967,95120.0,95119.0,0.20510881]
[1763361456130,0.09967,95120.0,95119.0,0.20610881]
[1763361456329,0.01539,95120.0,95119.0,0.20710881]
[1763361456538,0.03161134,95121.0,95119.0,0.20610881]
[1763361456719,0.03161134,95121.0,95119.0,0.20710881]
[1763361456896,0.03161134,95121.0,95119.0,0.20610881]
[1763361457095,0.03161134,95121.0,95119.0,0.20710881]
[1763361457538,0.03161134,95121.0,95119.0,0.20610881]
[1763361457737,0.03161134,95121.0,95119.0,0.20510881]
[1763361457937,0.03161134,95121.0,95119.0,0.20710881]
[1763361458375,0.03161134,95121.0,95120.0,0.04055]
[1763361458552,0.01650437,95124.0,95120.0,0.04055]
[1763361458957,0.03161077,95123.0,95120.0,0.04055]
[1763361459561,0.03161077,95123.0,95120.0,0.04155]
[1763361459719,0.03161077,95123.0,95120.0,0.04055]
[1763361460534,0.03161077,95123.0,95120.0,0.016]
[1763361461096,0.03161077,95123.0,95120.0,0.01483174]
[1763361461506,0.03161077,95123.0,95119.0,0.20510881]
[1763361461507,0.323,95122.0,95119.0,0.20510881]
[1763361463282,0.3546104,95122.0,95119.0,0.20510881]
[1763361463954,0.0316104,95122.0,95119.0,0.20510881]
[1763361464180,0.00117258,95120.0,95119.0,0.20510881]
[1763361465582,0.08545258,95120.0,95119.0,0.20510881]
[1763361465780,0.08545258,95120.0,95119.0,0.20610881]
[1763361465993,0.08545258,95120.0,95119.0,0.20710881]
[1763361467566,0.08545258,95120.0,95119.0,0.24754881]
[1763361467805,0.00117258,95120.0,95119.0,0.24754881]
[1763361469780,0.03278185,95120.0,95119.0,0.24754881]
[1763361470134,0.03160927,95120.0,95119.0,0.24754881]
[1763361471174,0.03160927,95120.0,95119.0,0.24637621]
[1763361472118,0.0481131,95120.0,95119.0,0.24637621]
[1763361473323,0.04495919,95120.0,95119.0,0.24637621]
[1763361475596,0.12923919,95120.0,95119.0,0.24637621]
[1763361497452,0.11273536,95120.0,95119.0,0.24637621]
[1763361501092,0.12923895,95120.0,95119.0,0.24637621]
[1763361504906,0.12923895,95120.0,95119.0,0.28768983]
[1763361505087,0.12923895,95120.0,95119.0,0.24637621]
[1763361505499,0.10078359,95120.0,95119.0,0.24637621]
[1763361507814,0.08428,95120.0,95119.0,0.24637621]
[1763361511352,0.10078334,95120.0,95119.0,0.24637621]
[1763361517093,0.13239045,95120.0,95119.0,0.24637621]
[1763361532221,0.13239045,95120.0,95119.0,0.25393621]
[1763361538008,0.10078334,95120.0,95119.0,0.25393621]
[1763361538212,0.10078334,95120.0,95119.0,0.29600583]
[1763361538609,0.08428,95120.0,95119.0,0.40323621]
[1763361539508,0.08428,95120.0,95119.0,0.40223621]
[1763361540182,0.08428,95120.0,95119.0,0.40323621]
[1763361543336,0.01650255,95154.0,95139.0,0.10510881]
[1763361543551,0.08428,95144.0,95140.0,0.02176088]
[1763361543812,0.08428,95144.0,95140.0,0.03562]
[1763361544049,0.08428,95144.0,95143.0,0.01574]
[1763361544570,0.08428,95144.0,95143.0,0.04011]
[1763361544773,0.08432431,95144.0,95143.0,0.04011]
[1763361549943,0.08432431,95144.0,95140.0,0.01125]
[1763361550694,0.03160081,95143.0,95140.0,0.01125]
[1763361551315,0.03160081,95143.0,95140.0,0.03562]
[1763361551635,0.03160081,95143.0,95142.0,0.01574]
[1763361552008,0.03160081,95143.0,95142.0,0.04011]
[1763361552462,0.04810118,95143.0,95142.0,0.04011]
[1763361553357,0.04810118,95143.0,95142.0,0.01574]
[1763361553582,0.04810118,95143.0,95142.0,0.04011]
[1763361558131,0.04810118,95143.0,95142.0,0.03992]
[1763361558585,0.04810118,95143.0,95142.0,0.01574]
[1763361558735,0.04810118,95143.0,95142.0,0.03992]
[1763361565277,0.04810118,95143.0,95142.0,0.13992]
[1763361569040,0.13234118,95143.0,95142.0,0.13992]
[1763361579085,0.13234118,95143.0,95142.0,0.11574]
[1763361579292,0.13234118,95143.0,95142.0,0.01574]
[1763361579708,0.13234118,95143.0,95142.0,0.03893]
[1763361582244,0.13234118,95143.0,95142.0,0.01574]
[1763361582799,0.13234118,95143.0,95142.0,0.03893]
[1763361583131,0.13234118,95143.0,95142.0,0.01574]
[1763361583764,0.13234118,95143.0,95142.0,0.03893]
[1763361586320,0.13234118,95143.0,95142.0,0.01574]
[1763361586450,0.13234118,95143.0,95140.0,0.01125]
[1763361586655,0.0166,95141.0,95139.0,0.10510881]
[1763361587249,0.03160321,95140.0,95139.0,0.10510881]
[1763361587508,0.04820321,95140.0,95139.0,0.10510881]
[1763361587739,0.07245321,95140.0,95139.0,0.10510881]
[1763361587946,0.08346082,95140.0,95139.0,0.10510881]
[1763361588146,0.08346082,95140.0,95125.0,0.02433]
[1763361588290,0.08346082,95140.0,95117.0,0.01125]
[1763361588291,0.34725,95139.0,95134.0,0.10510881]
[1763361588674,0.02877,95135.0,95134.0,0.10510881]
[1763361589069,0.05302,95135.0,95134.0,0.10510881]
[1763361589856,0.08462681,95135.0,95134.0,0.10510881]
[1763361592382,0.45295957,95135.0,95134.0,0.10510881]
[1763361594833,0.40762681,95135.0,95134.0,0.10510881]
[1763361595035,0.38337681,95135.0,95134.0,0.10510881]
[1763361595560,0.49186681,95135.0,95134.0,0.10510881]
[1763361596982,0.323,95134.0,95127.0,0.1]
[1763361597142,0.34725,95134.0,95127.0,0.1]
[1763361597398,0.323,95132.0,95127.0,0.1]
[1763361598320,0.03160791,95131.0,95127.0,0.1]
[1763361601565,0.04811116,95131.0,95127.0,0.1]
[1763361601942,0.01650325,95131.0,95127.0,0.1]
[1763361602163,0.03160791,95130.0,95127.0,0.1]
[1763361603658,0.0166,95128.0,95127.0,0.1]
[1763361603891,0.0166,95128.0,95119.0,0.20393621]
[1763361604091,0.02425,95127.0,95119.0,0.20393621]
[1763361604295,0.05585924,95127.0,95119.0,0.20393621]
[1763361604860,0.01012,95120.0,95119.0,0.10393621]
[1763361605556,0.12600924,95120.0,95119.0,0.10393621]
[1763361606936,0.16685924,95120.0,95119.0,0.10393621]
[1763361607179,0.18289716,95120.0,95119.0,0.10393621]
[1763361607325,0.14260924,95120.0,95119.0,0.10393621]
[1763361607661,0.12600924,95120.0,95119.0,0.10393621]
[1763361609052,0.04172924,95120.0,95119.0,0.10393621]
[1763361611956,0.03160924,95120.0,95119.0,0.10393621]
[1763361613025,0.03160924,95120.0,95119.0,0.14412621]
[1763361613224,0.03260924,95120.0,95119.0,0.14412621]
[1763361613756,0.03160924,95120.0,95119.0,0.14412621]
[1763361614010,0.50137947,95130.0,95119.0,0.14412621]
[1763361614207,0.50137947,95130.0,95129.0,0.02711]
[1763361614386,0.33299999,95130.0,95129.0,0.02711]
[1763361614588,0.33299999,95130.0,95129.0,0.05144]
[1763361614794,0.36010999,95130.0,95129.0,0.05144]
[1763361615605,0.43439,95130.0,95129.0,0.05144]
[1763361616008,0.43539,95130.0,95129.0,0.05144]
[1763361616839,0.08528,95130.0,95129.0,0.05144]
[1763361617996,0.08528,95130.0,95129.0,0.15144]
[1763361618196,0.08528,95130.0,95129.0,0.15244]
[1763361618929,0.08428,95130.0,95129.0,0.15244]
[1763361623913,0.35277525,95140.0,95129.0,0.15244]
[1763361624108,0.08428,95130.0,95129.0,0.12811]
[1763361624646,0.08428,95130.0,95129.0,0.15079]
[1763361624874,0.08428,95130.0,95129.0,0.02811]
[1763361625920,0.08428,95130.0,95129.0,0.01225]
[1763361626346,0.08428,95130.0,95129.0,0.01125]
[1763361629532,0.08428,95130.0,95126.0,0.1]
[1763361629759,0.01173,95129.0,95124.0,0.26055]
[1763361631407,0.01650279,95128.0,95124.0,0.26055]
[1763361631612,0.01650279,95128.0,95124.0,0.2493]
[1763361631857,0.01607,95125.0,95124.0,0.2493]
[1763361632413,0.01224588,95127.0,95124.0,0.1]
[1763361632620,0.0241,95125.0,95124.0,0.1]
[1763361635556,0.43138,95125.0,95124.0,0.1]
[1763361640711,0.323,95124.0,95116.0,0.01125]
[1763361640916,0.42026175,95124.0,95116.0,0.01125]
[1763361641127,0.0241,95123.0,95116.0,0.01125]
[1763361641330,0.0241,95123.0,95110.0,0.16055]
[1763361641331,0.0557088,95123.0,95121.0,0.10510881]
[1763361641734,0.0519,95122.0,95121.0,0.10510881]
[1763361641972,0.46885985,95122.0,95121.0,0.10510881]
[1763361642601,0.02520321,95120.0,95105.0,0.01125]
[1763361642837,0.01173,95111.0,95105.0,0.01125]
[1763361643246,0.323,95114.0,95105.0,0.01125]
[1763361643451,0.01125,95110.0,95105.0,0.01125]
[1763361643662,0.01125,95110.0,95105.0,0.11125]
[1763361643870,0.01125,95110.0,95109.0,0.01504]
[1763361645418,0.09553,95110.0,95109.0,0.01504]
[1763361645613,0.09553,95110.0,95105.0,0.11129431]
[1763361645899,0.09553,95110.0,95105.0,0.13565431]
[1763361646068,0.3976102,95109.0,95105.0,0.13565431]
[1763361646509,0.3976102,95109.0,95106.0,0.02436]
[1763361646714,0.3976102,95109.0,95108.0,0.0165]
[1763361646852,0.323,95109.0,95108.0,0.0165]
[1763361647770,0.323,95109.0,95105.0,0.11129431]
[1763361647986,0.323,95109.0,95105.0,0.13565431]
[1763361648147,0.323,95109.0,95105.0,0.11129431]
[1763361648348,0.323,95109.0,95106.0,0.02436]
[1763361648570,0.323,95109.0,95108.0,0.0165]
[1763361650668,0.09553,95110.0,95108.0,0.04086]
[1763361650917,0.09553,95110.0,95109.0,0.0165]
[1763361651112,0.08428,95110.0,95109.0,0.04086]
[1763361652540,0.08428,95110.0,95109.0,0.14086]
[1763361652732,0.08428,95110.0,95109.0,0.14186]
[1763361656796,0.08428,95110.0,95109.0,0.04186]
[1763361656960,0.08428,95128.0,95127.0,0.10510881]
[1763361657185,0.08428,95128.0,95127.0,0.12160881]
[1763361657384,0.08428,95128.0,95127.0,0.14596881]
[1763361658455,0.08428,95128.0,95127.0,0.24596881]
[1763361658662,0.08428,95128.0,95127.0,0.24696881]
[1763361658861,0.08428,95128.0,95127.0,0.28279069]
[1763361660061,0.08428,95128.0,95127.0,0.24696881]
[1763361664426,0.08428,95128.0,95127.0,0.39626881]
[1763361667531,0.08428,95128.0,95127.0,0.001]
[1763361668719,0.08428,95128.0,95127.0,0.04186]
[1763361668950,0.08428,95128.0,95127.0,0.0175]
[1763361669274,0.08428,95128.0,95127.0,0.0165]
[1763361669847,0.10078175,95128.0,95127.0,0.0165]
[1763361670048,0.10078175,95128.0,95126.0,0.01125]
[1763361670201,0.10078175,95128.0,95127.0,0.0165]
[1763361670573,0.10078175,95128.0,95124.0,0.01125]
[1763361671040,0.10078175,95128.0,95124.0,0.03561]
[1763361671423,0.10078175,95128.0,95125.0,0.02436]
[1763361672753,0.10078175,95128.0,95124.0,0.01125]
[1763361672956,0.10078175,95128.0,95127.0,0.0165]
[1763361673744,0.11329592,95128.0,95124.0,0.01125]
[1763361673948,0.11329592,95128.0,95123.0,0.10510881]
[1763361674193,0.02736,95124.0,95123.0,0.10510881]
[1763361674567,0.05135,95124.0,95123.0,0.10510881]
[1763361674767,0.08296007,95124.0,95123.0,0.10510881]
[1763361674965,0.49219182,95124.0,95123.0,0.10510881]
[1763361676604,0.49319182,95124.0,95123.0,0.10510881]
[1763361676968,0.02520321,95120.0,95107.0,0.1]
[1763361677176,0.02705,95108.0,95103.0,0.1]
[1763361677324,0.02295,95107.0,95101.0,0.1]
[1763361677727,0.03945557,95107.0,95101.0,0.1]
[1763361677937,0.0710698,95107.0,95101.0,0.1]
[1763361678234,0.03959,95106.0,95101.0,0.1]
[1763361678416,0.03959,95106.0,95087.0,0.01125]
[1763361678417,0.4126593,95106.0,95087.0,0.01125]
[1763361678797,0.44427473,95106.0,95087.0,0.01125]
[1763361679852,0.44527473,95106.0,95087.0,0.01125]
[1763361682188,0.43862417,95106.0,95087.0,0.01125]
[1763361684453,0.43862417,95106.0,95095.0,0.01125]
[1763361685636,0.52290417,95106.0,95095.0,0.01125]
[1763361685840,0.39903417,95106.0,95095.0,0.01125]
[1763361686042,0.48331417,95106.0,95095.0,0.01125]
[1763361686243,0.39903417,95106.0,95095.0,0.01125]
[1763361687071,0.39803417,95106.0,95095.0,0.01125]
[1763361687487,0.44382414,95106.0,95095.0,0.01125]
[1763361687902,0.07603417,95106.0,95103.0,0.01125]
[1763361689577,0.07503417,95106.0,95103.0,0.01125]
[1763361690212,0.07503417,95106.0,95095.0,0.01125]
[1763361690635,0.43762417,95106.0,95095.0,0.01125]
[1763361690845,0.41467417,95106.0,95095.0,0.01125]
[1763361691256,0.35461543,95106.0,95105.0,0.03856431]
[1763361691462,0.323,95106.0,95105.0,0.03856431]
[1763361691667,0.323,95106.0,95105.0,0.01534431]
[1763361691874,0.323,95106.0,95105.0,4.431e-05]
[1763361692671,0.35683443,95106.0,95105.0,4.431e-05]
[1763361694385,0.323,95106.0,95105.0,4.431e-05]
[1763361695538,0.40728,95106.0,95105.0,4.431e-05]
[1763361696601,0.42392,95106.0,95105.0,4.431e-05]
[1763361696809,0.44687,95106.0,95105.0,4.431e-05]
[1763361697349,0.42392,95106.0,95105.0,4.431e-05]
[1763361697499,0.44563487,95106.0,95105.0,4.431e-05]
[1763361697901,0.40728,95106.0,95105.0,4.431e-05]
[1763361698649,0.40828,95106.0,95105.0,4.431e-05]
[1763361701589,0.42478563,95106.0,95105.0,4.431e-05]
[1763361702774,0.10178563,95106.0,95105.0,0.03856431]
[1763361702986,0.10078563,95106.0,95105.0,0.03856431]
[1763361703412,0.10078563,95106.0,95105.0,0.01534431]
[1763361704495,0.10078563,95106.0,95105.0,4.431e-05]
[1763361706081,0.10078563,95106.0,95105.0,0.01641431]
[1763361706283,0.10078563,95106.0,95105.0,0.04067431]
[1763361706688,0.10078563,95106.0,95105.0,0.01641431]
[1763361708497,0.10078563,95106.0,95105.0,4.431e-05]
[1763361710242,0.10078563,95106.0,95105.0,0.01641431]
[1763361711594,0.11198919,95106.0,95105.0,4.431e-05]
[1763361715027,0.10078563,95106.0,95105.0,4.431e-05]
[1763361715778,0.10078563,95106.0,95105.0,0.01641431]
[1763361716195,0.10078563,95106.0,95105.0,0.04067431]
[1763361719076,0.10078563,95106.0,95105.0,4.431e-05]
[1763361720350,0.10078563,95106.0,95105.0,0.04067431]
[1763361720788,0.10078563,95106.0,95105.0,4.431e-05]
[1763361721354,0.10078563,95106.0,95105.0,0.01641431]
[1763361722168,0.10078563,95106.0,95105.0,0.04067431]
[1763361725396,0.11086419,95106.0,95105.0,4.431e-05]
[1763361727759,0.14985419,95106.0,95105.0,4.431e-05]
[1763361727938,0.12610419,95106.0,95105.0,4.431e-05]
[1763361728139,0.14985419,95106.0,95105.0,4.431e-05]
[1763361730181,0.10078563,95106.0,95105.0,4.431e-05]
[1763361731504,0.11602563,95106.0,95105.0,4.431e-05]
[1763361731854,0.13977563,95106.0,95105.0,4.431e-05]
[1763361732256,0.11602563,95106.0,95105.0,4.431e-05]
[1763361732468,0.10078563,95106.0,95105.0,4.431e-05]
[1763361734305,0.11436419,95106.0,95105.0,4.431e-05]
[1763361736460,0.13754419,95106.0,95105.0,4.431e-05]
[1763361737147,0.11436419,95106.0,95105.0,4.431e-05]
[1763361739029,0.10078563,95106.0,95105.0,4.431e-05]
[1763361740892,0.10078563,95106.0,95105.0,0.00024186]
[1763361744703,0.11681563,95106.0,95105.0,0.00024186]
[1763361745532,0.14052563,95106.0,95105.0,0.00024186]
[1763361745742,0.11681563,95106.0,95105.0,0.00024186]
[1763361745949,0.13086819,95106.0,95105.0,0.00024186]
[1763361746159,0.14211819,95106.0,95105.0,0.00024186]
[1763361747143,0.12608819,95106.0,95105.0,0.00024186]
[1763361747761,0.11203563,95106.0,95105.0,0.00024186]
[1763361748623,0.02775563,95106.0,95105.0,0.03988186]
[1763361748876,0.10078563,95106.0,95105.0,0.03988186]
[1763361749961,0.10078563,95106.0,95105.0,0.13988186]
[1763361750395,0.10078563,95106.0,95105.0,0.14088186]
[1763361750555,0.10078563,95106.0,95105.0,0.04188186]
[1763361752019,0.10078563,95106.0,95105.0,0.04088186]
[1763361752225,0.10078563,95106.0,95105.0,0.03988186]
[1763361757202,0.08428,95106.0,95105.0,0.03988186]
[1763361758514,0.08428,95106.0,95105.0,0.04088186]
[1763361758720,0.08428,95106.0,95105.0,0.03988186]
[1763361758918,0.092708,95106.0,95105.0,0.03988186]
[1763361759141,0.092708,95106.0,95105.0,0.04088186]
[1763361759341,0.08428,95106.0,95105.0,0.04088186]
[1763361759640,0.08428,95106.0,95105.0,0.03988186]
[1763361763861,0.08428,95106.0,95105.0,0.01670186]
[1763361765262,0.08428,95106.0,95105.0,0.03988186]
[1763361766995,0.08428,95106.0,95105.0,0.00024186]
[1763361768232,0.08428,95106.0,95105.0,0.01534186]
[1763361768596,0.109338,95106.0,95105.0,0.00024186]
[1763361768799,0.133608,95106.0,95105.0,0.00024186]
[1763361769102,0.1652242,95106.0,95105.0,0.00024186]
[1763361770916,0.1817298,95106.0,95105.0,0.00024186]
[1763361776956,0.1733018,95106.0,95105.0,0.00024186]
[1763361777151,0.1324018,95106.0,95105.0,0.00024186]
[1763361777804,0.1733018,95106.0,95105.0,0.00024186]
[1763361778939,0.0890218,95106.0,95105.0,0.00024186]
[1763361782251,0.45544054,95106.0,95105.0,0.00024186]
[1763361782464,0.51794199,95106.0,95105.0,0.00024186]
[1763361782667,0.43893494,95106.0,95105.0,0.00024186]
[1763361783931,0.43993494,95106.0,95105.0,0.00024186]
[1763361785520,0.52421494,95106.0,95105.0,0.00024186]
[1763361789169,0.43993494,95106.0,95105.0,0.00024186]
[1763361789371,0.48509143,95106.0,95105.0,0.00024186]
[1763361789576,0.43993494,95106.0,95105.0,0.00024186]
[1763361794869,0.39903494,95106.0,95105.0,0.00024186]
[1763361795185,0.43993494,95106.0,95105.0,0.00024186]
[1763361795596,0.52421494,95106.0,95105.0,0.00024186]
[1763361796231,0.53972182,95106.0,95105.0,0.00024186]
[1763361796889,0.51545182,95106.0,95105.0,0.00024186]
[1763361797096,0.41454182,95106.0,95105.0,0.01564186]
[1763361797271,0.37112308,95106.0,95105.0,0.01564186]
[1763361797659,0.3546162,95106.0,95105.0,0.01564186]
[1763361798806,0.3546162,95106.0,95105.0,0.00024186]
[1763361799293,0.3546162,95106.0,95105.0,0.10024186]
[1763361800621,0.37112221,95106.0,95105.0,0.10024186]
[1763361805531,0.45540221,95106.0,95105.0,0.10024186]
[1763361809852,0.47099221,95106.0,95105.0,0.10024186]
[1763361810067,0.49535221,95106.0,95105.0,0.00024186]
[1763361810730,0.4788462,95106.0,95105.0,0.00024186]
[1763361810933,0.52902482,95106.0,95105.0,0.00024186]
[1763361811342,0.57344356,95106.0,95105.0,0.00024186]
[1763361812611,0.57444356,95106.0,95105.0,0.00024186]
[1763361813637,0.59095026,95106.0,95105.0,0.00024186]
[1763361819880,0.01147,95099.0,95098.0,0.1]
[1763361820114,0.02710427,95099.0,95098.0,0.1]
[1763361820311,0.43036442,95099.0,95098.0,0.1]
[1763361820555,0.46198315,95099.0,95098.0,0.1]
[1763361821455,0.323,95098.0,95097.0,0.1]
[1763361821993,0.35461873,95098.0,95097.0,0.1]
[1763361822250,0.39925805,95098.0,95097.0,0.1]
[1763361823485,0.03161873,95098.0,95097.0,0.1]
[1763361823703,0.03161873,95098.0,95097.0,0.12665]
[1763361823992,0.03161873,95098.0,95097.0,0.15131]
[1763361824401,0.03161873,95098.0,95097.0,0.12665]
[1763361825272,0.03161873,95098.0,95097.0,0.11125]
[1763361825592,0.03161873,95098.0,95097.0,0.1277]
[1763361826209,0.03161873,95098.0,95097.0,0.11125]
[1763361827107,0.11589873,95098.0,95097.0,0.15071]
[1763361828795,0.03161873,95098.0,95097.0,0.15071]
[1763361829006,0.11589873,95098.0,95097.0,0.15071]
[1763361829215,0.11589873,95098.0,95097.0,0.11125]
[1763361830455,0.11589873,95098.0,95097.0,0.1]
[1763361837350,0.15455873,95098.0,95097.0,0.1]
[1763361837572,0.17238503,95098.0,95097.0,0.1]
[1763361840291,0.14876503,95098.0,95097.0,0.1]
[1763361841031,0.17238503,95098.0,95097.0,0.1]
[1763361841378,0.14876503,95098.0,95097.0,0.1]
[1763361843000,0.16527197,95098.0,95097.0,0.1]
[1763361843448,0.13240567,95098.0,95097.0,0.1]
[1763361844082,0.04812567,95098.0,95097.0,0.13946]
[1763361844293,0.13240567,95098.0,95097.0,0.13946]
[1763361844493,0.13240567,95098.0,95097.0,0.1]
[1763361850985,0.13240567,95098.0,95097.0,0.11645]
[1763361851154,0.13240567,95098.0,95097.0,0.13946]
[1763361851356,0.04812567,95098.0,95097.0,0.13946]
[1763361851557,0.13240567,95098.0,95097.0,0.13946]
[1763361852606,0.13240567,95098.0,95097.0,0.11645]
[1763361852893,0.14565066,95098.0,95097.0,0.1]
[1763361853855,0.13240567,95098.0,95097.0,0.1]
[1763361854700,0.04812567,95098.0,95097.0,0.1]
[1763361854922,0.13240567,95098.0,95097.0,0.1]
[1763361857167,0.13240567,95098.0,95097.0,0.11549]
[1763361857735,0.10078694,95098.0,95097.0,0.13948]
[1763361858391,0.08428,95098.0,95097.0,0.13948]
[1763361859185,0.08428,95098.0,95097.0,0.23948]
[1763361859791,4.427e-05,95099.0,95097.0,0.23948]
[1763361860003,0.08428,95098.0,95097.0,0.2]
[1763361860341,0.08428,95098.0,95097.0,0.21549]
[1763361860537,0.0997352,95098.0,95097.0,0.13948]
[1763361861098,0.0997352,95098.0,95097.0,0.23948]
[1763361861716,0.0997352,95098.0,95097.0,0.13948]
[1763361862586,0.08428,95098.0,95097.0,0.13948]
[1763361865431,4.427e-05,95099.0,95097.0,0.13948]
[1763361865634,4.427e-05,95099.0,95098.0,0.03948]
[1763361865914,0.08432427,95099.0,95098.0,0.03948]
[1763361866412,4.427e-05,95099.0,95098.0,0.03948]
[1763361866618,0.08432427,95099.0,95098.0,0.03948]
[1763361866820,0.08432427,95099.0,95098.0,0.13948]
[1763361867476,0.08432427,95099.0,95098.0,0.23948]
[1763361870454,0.08432427,95099.0,95098.0,0.13948]
[1763361871080,0.08432427,95099.0,95098.0,0.23948]
[1763361871818,0.10082982,95099.0,95098.0,0.23948]
[1763361872099,0.08432427,95099.0,95098.0,0.23948]
[1763361874778,0.08432427,95099.0,95098.0,0.13948]
[1763361875161,0.1008298,95099.0,95098.0,0.13948]
[1763361875336,0.1008298,95099.0,95098.0,0.23948]
[1763361878685,0.1008298,95099.0,95098.0,0.38878]
[1763361879289,0.0165498,95099.0,95098.0,0.28878]
[1763361879495,0.1008298,95099.0,95098.0,0.28878]
[1763361879946,0.1008298,95099.0,95098.0,0.23948]
[1763361880158,0.1008298,95099.0,95098.0,0.13948]
[1763361880734,0.1008298,95099.0,95098.0,0.23948]
[1763361880937,0.00999999,95120.0,95098.0,0.23948]
[1763361881143,0.1639642,95120.0,95119.0,0.13184881]
[1763361881357,4.44e-05,95120.0,95119.0,0.13184881]
[1763361881560,4.44e-05,95120.0,95119.0,0.15583881]
[1763361881761,4.44e-05,95120.0,95119.0,0.17142269]
[1763361881959,0.0010444,95120.0,95119.0,0.17142269]
[1763361882970,0.0020444,95120.0,95119.0,0.17142269]
[1763361883180,0.0010444,95120.0,95119.0,0.17142269]
[1763361883400,4.44e-05,95120.0,95119.0,0.17142269]
[1763361883750,0.0010444,95120.0,95119.0,0.15583881]
[1763361884198,4.44e-05,95120.0,95119.0,0.23557108]
[1763361884423,0.0010444,95120.0,95119.0,0.23557108]
[1763361884645,0.0010444,95120.0,95119.0,0.33557108]
[1763361885308,4.44e-05,95120.0,95119.0,0.33557108]
[1763361885513,0.0843244,95120.0,95119.0,0.33557108]
[1763361890469,0.0843244,95120.0,95119.0,0.23184881]
[1763361892602,0.0843244,95120.0,95119.0,0.20510881]